Cogmind - Beta 14 @@@ ROGUE MODE // 2024.10.19 @ 23:16:00 Player: karotgaemin Result: Destroyed by D-53 Grenadier with Mini Grenade Launcher Performance ------------- Evolutions (0) 0 Regions Visited (4) 800 Robots Destroyed (22) 110 Value Destroyed (515) 515 Prototype IDs (3) 60 Alien Tech Used (0) 0 Bonus (0) 0 TOTAL SCORE: 1485 Bonus ------- None Cogmind --------- Core Integrity 0/250 Matter 300/300 Energy 99/100 System Corruption 0% Temperature Cool (5) Movement Treading (160) Location -9/Mines Parts ------- > --- POWER (1) -------- (None) > --- PROPULSION (2) --- Light Treads Light Treads > --- UTILITY (2) ------ Large Storage Unit > --- WEAPON (2) ------- Small Laser > --- INVENTORY (15) --- Ion Engine Light Treads Wheel Compact Wheel Heat Sink Improved Heat Sink Sensor Array Targeting Computer Small Laser Assault Rifle Rocket Launcher Ripper Peak State ------------ > --- POWER ------------ Light Nuclear Core > --- PROPULSION ------- Light Treads Light Treads > --- UTILITY ---------- Large Storage Unit Experimental Sensor Array > --- WEAPON ----------- Small Laser Particle Gun > --- INVENTORY -------- Ion Engine Light Treads Wheel Compact Wheel Heat Sink Improved Heat Sink Sensor Array Targeting Computer Small Laser Assault Rifle Rocket Launcher [Rating: 19] Favorites ----------- Power Light Nuclear Core Engine Ion Engine Power Core Light Nuclear Core Propulsion Light Treads Treads Light Treads Utility Seismic Detector Device Seismic Detector Storage Large Storage Unit Weapon Small Laser Energy Gun Small Laser Ballistic Gun Light Assault Rifle Build | -11 -10 -10 -10 -9 ------- Run | Yrd Mat Min Exi Min Slots Evolved . | . . . . . Power . | . . . . . Propulsion . | . . . . . Utility . | . . . . . Weapon . | . . . . . Parts Attached 22 | 7 10 5 . . Power 3 | 1 1 1 . . Engine 1 | 1 . . . . Core 2 | . 1 1 . . Reactor . | . . . . . Propulsion 7 | 2 4 1 . . Treads 7 | 2 4 1 . . Leg . | . . . . . Wheel . | . . . . . Hover . | . . . . . Flight . | . . . . . Utility 5 | 2 1 2 . . Device 3 | 1 . 2 . . Storage 2 | 1 1 . . . Processor . | . . . . . Hackware . | . . . . . Protection . | . . . . . Artifact . | . . . . . Weapon 7 | 2 4 1 . . Energy Gun 3 | . 2 1 . . Energy Cannon . | . . . . . Ballistic Gun 4 | 2 2 . . . Ballistic Cannon . | . . . . . Launcher . | . . . . . Special Weapon . | . . . . . Impact Weapon . | . . . . . Slashing Weapon . | . . . . . Piercing Weapon . | . . . . . Special Melee Weapon . | . . . . . Unidentified Prototypes 1 | . . 1 . . Parts Lost 4 | . . 1 . 3 Power 1 | . . . . 1 Propulsion . | . . . . . Utility 2 | . . 1 . 1 Weapon 1 | . . . . 1 Highest Loss Streak 3 | . . 1 . 3 To Critical Strikes . | . . . . . Average Slot Usage (%) 99 | . 100 99 100 100 Engine 3 | . 7 . . . Core 10 | . 6 14 14 14 Treads 28 | . 28 28 28 28 Device 13 | . 14 13 14 14 Storage 14 | . 14 14 14 14 Energy Gun 16 | . 4 28 28 28 Ballistic Gun 11 | . 23 . . . Peak Build Rating 19 | 7 9 19 19 19 Average Rating 11 | 5 7 13 19 18 On Entrance 10 | . 7 9 19 19 Naked Turns . | . . . . . Heaviest Build 30 | 13 28 30 30 30 Greatest Support 40 | 40 40 40 40 40 Greatest Overweight (x) . | . . . . . Average Overweight (x) . | . . . . . Largest Inventory Capacity 15 | 8 15 15 15 15 Average Capacity 11 | 7 8 15 15 15 Most Carried 12 | 7 8 12 12 12 Average Carried 8 | 4 7 9 12 12 Final Capacity 15 | 8 15 15 15 15 Final Carried 12 | 6 8 12 12 12 Class Distribution -------------------- 100% | Mutant Dominant Class ---------------- Mutant | -10/Materials Mutant | -10/Mines Mutant | -10/Exiles Mutant | -9/Mines Resources | -11 -10 -10 -10 -9 ----------- Run | Yrd Mat Min Exi Min Matter Collected 512 | 269 193 50 . . Remotely . | . . . . . Salvage Created 631 | 27 432 132 . 40 Parts 56 | 5 34 12 . 5 Haulers Intercepted . | . . . . . Recyclers Shooed . | . . . . . Parts Field Recycled . | . . . . . Retrieved Matter . | . . . . . Parts Self-Destructed . | . . . . . Prevented . | . . . . . Kills | -11 -10 -10 -10 -9 ------- Run | Yrd Mat Min Exi Min Combat Hostiles Destroyed 20 | . 12 5 . 3 Guns 20 | . 12 5 . 3 Classes Destroyed 4 | 1 3 . . . Builder 1 | . 1 . . . Tunneler 1 | 1 . . . . Swarmer 9 | . 3 3 . 3 Grunt 11 | . 9 2 . . Best Kill Streak 3 | 1 2 3 . 3 Combat Bots Only 3 | . 2 3 . 3 Max Kills in Single Turn 1 | 1 1 1 . 1 Gunslinging . | . . . . . Exploded . | . . . . . Melee . | . . . . . Uniques/NPCs Destroyed . | . . . . . Combat | -11 -10 -10 -10 -9 -------- Run | Yrd Mat Min Exi Min Hostile Shots Fired 92 | . 45 18 . 29 Missed 26 | . 11 6 . 9 Damage Taken 992 | . 451 149 . 392 Core 256 | . 57 23 . 176 Absorbed by Shields . | . . . . . Core Remaining (%) 100 | 100 . . . . Volleys Fired 61 | 2 42 9 . 8 Largest 2 | 2 2 2 . 2 Hottest 105 | 40 80 80 . 105 Shots Fired 122 | 4 84 18 . 16 Gun 122 | 4 84 18 . 16 Cannon . | . . . . . Launcher . | . . . . . Special . | . . . . . Kinetic 64 | 4 60 . . . Thermal 58 | . 24 18 . 16 Explosive . | . . . . . Electromagnetic . | . . . . . Robot Hit Streak 13 | 4 13 7 . 3 Robot Miss Streak 7 | . 7 2 . 5 Penetration Max . | . . . . . Secondary Targets 2 | . . 1 . 1 Max Gunslinging Chain 1 | . . 1 . 1 Shots Hit Robots 80 | 4 58 12 . 6 Core Hits 43 | 1 29 8 . 5 Critical Kills . | . . . . . Critical Parts Destroyed . | . . . . . Critical Strikes . | . . . . . Melee Attacks . | . . . . . Impact . | . . . . . Slashing . | . . . . . Piercing . | . . . . . Sneak Attacks . | . . . . . Combat Hostiles . | . . . . . Follow-up Attacks . | . . . . . Damage Inflicted 804 | 34 547 129 . 94 Guns 802 | 34 547 127 . 94 Cannons . | . . . . . Explosions . | . . . . . Melee . | . . . . . Ramming 2 | . . 2 . . Kinetic 485 | 34 451 . . . Thermal 317 | . 96 127 . 94 Explosive . | . . . . . Electromagnetic . | . . . . . Impact . | . . . . . Slashing . | . . . . . Piercing . | . . . . . Highest Corruption . | . . . . . Average Corruption . | . . . . . Corruption Purged . | . . . . . Corruption Blocked . | . . . . . Overload Shots . | . . . . . Overflow Damage . | . . . . . Projectiles . | . . . . . Explosions . | . . . . . Melee . | . . . . . Knockbacks . | . . . . . Impact . | . . . . . Kinetic . | . . . . . Secondary . | . . . . . Self-Inflicted Damage . | . . . . . Shots . | . . . . . Rammed 1 | . . 1 . . Targets Rammed 1 | . . 1 . . Kicked . | . . . . . Crushed . | . . . . . Highest Temperature 357 | . 104 204 . 357 Average Temperature 69 | . 25 86 . 159 Received Heat Transfer 336 | . 249 87 . . Effects 1 | . . . . 1 Shutdowns 1 | . . . . 1 Siege Activations . | . . . . . Robots Corrupted . | . . . . . Combat Hostiles . | . . . . . Parts Fried . | . . . . . Impact Corruptions . | . . . . . Robots Melted . | . . . . . Combat Hostiles . | . . . . . Parts Melted 2 | . 2 . . . Heat Transferred 748 | . 225 300 . 223 Parts Sabotaged . | . . . . . Parts Stolen . | . . . . . Parts Stripped . | . . . . . Power Chain Reactions . | . . . . . Alert | -11 -10 -10 -10 -9 ------- Run | Yrd Mat Min Exi Min Peak Influence 243 | 5 243 179 . 70 Initial 94 | . 3 94 . . Average 68 | . 61 86 . 53 Maximum Alert Level 1 | . 1 . . . Low Security (%) 98 | 100 98 100 . 100 Level 1 1 | . 1 . . . Level 2 . | . . . . . Level 3 . | . . . . . Level 4 . | . . . . . Level 5 . | . . . . . High Security . | . . . . . Max Security . | . . . . . Squads Dispatched 5 | . 5 . . . Investigation 3 | . 3 . . . Extermination . | . . . . . Reinforcement 2 | . 2 . . . Assault . | . . . . . Garrison . | . . . . . Intercept . | . . . . . Searches Triggered . | . . . . . Construction Impeded . | . . . . . Haulers Reinforced . | . . . . . Active Scanning Responses . | . . . . . Cargo Convoy Interrupts . | . . . . . Stealth | -11 -10 -10 -10 -9 --------- Run | Yrd Mat Min Exi Min Distress Signals 1 | . 1 . . . Communications Jammed . | . . . . . Distress Signals . | . . . . . Times Spotted 31 | . 22 4 . 5 Peak Tracking Total 5 | . 5 2 . 3 Tactical Retreats 2 | . 2 . . . Traps | -11 -10 -10 -10 -9 ------- Run | Yrd Mat Min Exi Min Traps Triggered 4 | . 4 . . . Indirectly . | . . . . . Trap Hack Attempts . | . . . . . Triggered . | . . . . . Disarmed . | . . . . . Reprogrammed . | . . . . . Reused . | . . . . . Traps Extracted . | . . . . . Installed . | . . . . . Triggered . | . . . . . Machines | -11 -10 -10 -10 -9 ---------- Run | Yrd Mat Min Exi Min Machines Disabled . | . . . . . Max in Single Turn . | . . . . . Machines Repaired . | . . . . . Machines Dismantled . | . . . . . Machines Sabotaged . | . . . . . Overloaded Fab Kills . | . . . . . Hacking | -11 -10 -10 -10 -9 --------- Run | Yrd Mat Min Exi Min Machines Accessed 3 | . 2 . 1 . Terminals 2 | . 2 . . . Fabricators . | . . . . . Repair Stations . | . . . . . Recycling Units . | . . . . . Scanalyzers . | . . . . . Garrison Access . | . . . . . Total Hacks 26 | . 3 . 23 . Successful 25 | . 2 . 23 . Failed 1 | . 1 . . . Catastrophic . | . . . . . Database Lockouts . | . . . . . Manual 1 | . . . 1 . Terminals 3 | . 3 . . . Fabricators . | . . . . . Repair Stations . | . . . . . Recycling Units . | . . . . . Scanalyzers . | . . . . . Garrison Access . | . . . . . Terminal Hacks 25 | . 2 . 23 . Record 23 | . . . 23 . Prototype ID Bank 1 | . 1 . . . Emergency Access Points 1 | . 1 . . . Fabricator Hacks . | . . . . . Repair Station Hacks . | . . . . . Recycling Unit Hacks . | . . . . . Scanalyzer . | . . . . . Garrison Access Hacks . | . . . . . Unauthorized Hacks . | . . . . . Terminals . | . . . . . Fabricators . | . . . . . Repair Stations . | . . . . . Recycling Units . | . . . . . Scanalyzers . | . . . . . Garrison Access . | . . . . . Data Cores Recovered . | . . . . . Used . | . . . . . Hacking Detections . | . . . . . Full Trace Events . | . . . . . Feedback Events . | . . . . . Feedback Blocked . | . . . . . Robot Schematics Acquired . | . . . . . Robots Built . | . . . . . Authchips . | . . . . . Time . | . . . . . Total Robot Build Rating . | . . . . . Part Schematics Acquired . | . . . . . Parts Built . | . . . . . Authchips . | . . . . . Time . | . . . . . Total Part Build Rating . | . . . . . Parts Repaired . | . . . . . Time . | . . . . . Parts Recycled . | . . . . . Recycled Matter . | . . . . . Retrieved Matter . | . . . . . Retrieved Components . | . . . . . Parts Scanalyzed . | . . . . . Part Schematics Acquired . | . . . . . Parts Damaged . | . . . . . Bothacking | -11 -10 -10 -10 -9 ------------ Run | Yrd Mat Min Exi Min Used RIF Installer . | . . . . . Robots Hacked . | . . . . . Non-combat . | . . . . . Combat . | . . . . . Robot Hacks Applied . | . . . . . Relay Couplers Released . | . . . . . Fabnet Peak Effective % . | . . . . . Robots Rewired . | . . . . . Allies Hacked . | . . . . . Hacks Repelled . | . . . . . Allies | -11 -10 -10 -10 -9 -------- Run | Yrd Mat Min Exi Min Total Allies . | . . . . . Largest Group . | . . . . . Highest-Rated Group . | . . . . . Highest-Rated Ally . | . . . . . Total Orders . | . . . . . Ally Attacks . | . . . . . Total Damage . | . . . . . Kills . | . . . . . Allies Corrupted . | . . . . . Allies Melted . | . . . . . Intel | -11 -10 -10 -10 -9 ------- Run | Yrd Mat Min Exi Min Robot Analysis Total . | . . . . . Derelict Logs Recovered 1 | . . 1 . . Drone Launches . | . . . . . Drone Recoveries . | . . . . . Exploration | -11 -10 -10 -10 -9 ------------- Run | Yrd Mat Min Exi Min Turns Passed 2983 | 112 1403 991 415 62 Spaces Moved 1684 | 60 754 589 257 24 Core 7 | 7 . . . . Treads 1677 | 53 754 589 257 24 Legs . | . . . . . Wheels . | . . . . . Hover . | . . . . . Flight . | . . . . . Fastest Speed 50 | 50 160 160 160 160 Average Speed 159 | 147 160 160 160 160 Slowest Speed 160 | 160 160 160 160 160 Overloaded Moves . | . . . . . Propulsion Burnouts . | . . . . . Robots Hopped . | . . . . . Cave-ins Triggered . | . . . . . Exploration Rate (%) 53 | 4 91 99 57 15 Regions Visited 4 Branch Regions 3 Pre-discovered Areas 3 | . . 2 1 . Known Exits Taken . | . . . . . Unknown Exits Taken 4 | 1 1 1 1 . Scrap Searched 2 | . . 1 . 1 Spaces Dug . | . . . . . Terrain Destroyed . | . . . . . Melee . | . . . . . Projectile . | . . . . . AOE . | . . . . . Terrain Rammed . | . . . . . Walls Destroyed . | . . . . . Machines Disabled . | . . . . . Actions | -11 -10 -10 -10 -9 --------- Run | Yrd Mat Min Exi Min Total 1871 | 81 879 618 261 32 Wait 63 | . 55 8 . . Move 1680 | 59 753 588 256 24 Hop . | . . . . . Pick Up 27 | 13 8 6 . . Fast Attach . | . . . . . Attach 8 | 7 . 1 . . Detach . | . . . . . Swap 14 | . 10 4 . . Drop 12 | . 11 1 . . Fire 61 | 2 42 9 . 8 Melee . | . . . . . Ram . | . . . . . Kick . | . . . . . Crush 1 | . . 1 . . Escape Stasis . | . . . . . Rewire 5 | . . . 5 . Trap . | . . . . . Miscellaneous . | . . . . . Route ------- -11/Scrapyard -10/Materials (discovered 4 exits: [*Mat x3] / [*Min]) -10/Mines (discovered 4 exits: [*Mat x2] / *Exi / [*Sub]) -10/Exiles -9/Mines (discovered 1 exit: [*Mat]) History --------- Turn | Location | Event 46 | -11/Scrapyard | Discovered new exit (range 15) 113 | -11/Scrapyard | Entered Materials 314 | -10/Materials | Build established: Mutant 874 | -10/Materials | Discovered new exit (range 4) 1107 | -10/Materials | Discovered new exit (range 15) 1323 | -10/Materials | Discovered new exit (range 10) 1388 | -10/Materials | Discovered new exit (range 14) 1516 | -10/Materials | Entered Mines 1727 | -10/Mines | Learned location of Zion (-7) 1807 | -10/Mines | Discovered new exit (range 5) 1969 | -10/Mines | Received a Rocket Launcher from a helpful Derelict 2066 | -10/Mines | Found a damaged Exp. Sensor Array with a note attached 2069 | -10/Mines | Found Prototype Device 2070 | -10/Mines | Identified Exp. Sensor Array 2078 | -10/Mines | Discovered new exit (range 11) 2151 | -10/Mines | A weapon hastily lodged in a ceiling crevice suddenly fell to the ground 2169 | -10/Mines | Discovered new exit (range 6) 2430 | -10/Mines | Learned location of Storage (-9) 2499 | -10/Mines | Deemed a non-threat by the Exiles lab entrance 2499 | -10/Mines | Discovered new exit (range 5) 2507 | -10/Mines | Entered Exiles 2555 | -10/Exiles | Met 8R-AWN 2578 | -10/Exiles | Met EX-HEX 2704 | -10/Exiles | Met EX-DEC 2906 | -10/Exiles | Discovered new exit (range 10) 2922 | -10/Exiles | Entered Mines 2951 | -9/Mines | Assembled infested the area 2956 | -9/Mines | Assisted by a Guerilla fighting off Assembled 2977 | -9/Mines | Core integrity fell below 50% 2982 | -9/Mines | Core integrity fell below 20% 2983 | -9/Mines | Discovered new exit (range 12) 2984 | -9/Mines | Destroyed by D-53 Grenadier with Mini Grenade Launcher Last Messages --------------- come on!" 02975_ Q1-XXZ(h): "I'll hold them off! Go on ahead or try to find another way!" 02975_ HV Slug penetrates C-30 ARC. 02975_ Searching scrap... 02975_ Found Imp. Light Cannon. 02975_ Found Mni. Grenade Launcher. 02975_ Found Visual Processing Unit. 02975_ Found 60 Matter. 02976_ C-30 ARC bursts open, deploying its payload. 02976_ D-53 Grenadier unfolds itself. 02978_ Q1-XXZ(h) destroyed. 02980_ Particle Gun destroyed. 02982_ U-05 Engineer lays Concrete. 02982_ Lgt. Nuclear Core destroyed. 02983_ The unstable cave ceiling collapses. 02983_ U-05 Engineer builds a Wall. 02983_ EXIT=FOUND 02984_ Exp. Sensor Array destroyed. Map ----- +----------------------------------------------------+ | | | | | | | | | | | | | ?????????????????????????????????????????????????? | | ?????????????????????????????????????????????????? | | ?????????????????????????????????????????????????? | | ??????#############??????????????????????????????? | | ??????# #??????????????????????????????? | | ??????# #??????????????????????????????? | | ??????# #??????????????????????????????? | | ??????# """ #??????????????????????????????? | | ??????# """ #??????????????????????????????? | | ??????# """ = #??????????????????????????????? | | ??????# """=% %[ #??????????????#???????????????? | | ??????# #????????????? ##??????????????? | | ??????# = #???????????? ##?????????????? | | ??????########%####??????????? #?????????????? | | ?????????????#=#???????????### ##????????????? | | ?????????????# ############ ##???????????? | | ?????????????# # #???????????? | | ?????????????####### ??????????????? | | ??????????????????# #?????????????????? | | ??????????????????# @ ###????????????????? | | ??????????????????# #????????????????? | | ??????????????????# #????????????????? | | ?????????????????# ## #????????????????? | | ?????????????????# ##???????????????????? | | ?????????????????# #gg ???????????????????? | | ?????????????????# ]d ### #??????????????????? | | ????????????????u %d #?? ?????????????????? | | ???????????????### #?? ????????????????? | | ????????????????# #??? #???????????????? | | ????????????????## ##???? ???????????????? | | ????????????????? ??????< ##??????????????? | | ????????????????# #??????? #???????????????? | | ???????????????? ???????? #???????????????? | | ????????????????" ????????#???????????????????? | | ??????????????????? ????????????????????????????? | | ?????????????????????????????????????????????????? | | ?????????????????????????????????????????????????? | | ?????????????????????????????????????????????????? | | ?????????????????????????????????????????????????? | | ?????????????????????????????????????????????????? | | ?????????????????????????????????????????????????? | | ?????????????????????????????????????????????????? | | ?????????????????????????????????????????????????? | | ?????????????????????????????????????????????????? | +----------------------------------------------------+ Best States ------------- Heat Dissipation 25 Energy Generation 14 Energy Capacity 250 Matter Stores 300 Matter Capacity 300 Sight Range 16 Robot Scan Range 20 Terrain Scan Density 10 Evasion (%) 40 Recoil Reduction 2 Item Schematics ----------------- None Robot Schematics ------------------ None Fabricated ------------ Nothing Alien Tech Used ----------------- None Achievements -------------- None Challenges ------------ None Game ------ Seed ImpulseCoordinationAirjet Manual? 0 Play Time 00:13:46 Cumulative 20.4 hours Start 2024.10.19 @ 23:02:42 End 2024.10.19 @ 23:16:00 Sessions 1 Manual Loads 0 Difficulty Rogue Special Mode None Game No. 62 Rogue 62 Adventurer 0 Explorer 0 Win Type - Total 0 Types 0/0/0/0/0/0/0/0/0 Lore% 8 Gallery% 25 Achievement% 20 Wizard Run 0 Options --------- Layout 1 ASCII 0 Keyboard 0 Movement Mouse Keybinds 0 Fullscreen 2 Font 24/Smallcaps Map View 50x35 Zoom Use 0% Tactical HUD 1 Map Filters NONE Filters NONE Steam 1 RUN: 6a5171bc-7e9b-4496-9ccd-a3b2e38a6c88